{"text_format":"1","workbook":"xlsx","n_sheets":16,"sheets":["Autodiagnóstico Ético","Instructivo","Glosario de Términos","Información básica OO.EE","Ficha de Autoevaluación","Rúbrica Principios","Autoevaluación principios ","Riesgo No 1","Riesgo No 2","Riesgo No 3","Riesgo No 4","Riesgo No 5","Riesgo No 6","Riesgo No 7","Riesgo No 8","Riesgo No 9"],"not_rendered":{"charts":0,"images":6,"macros":1,"external_links":0,"defined_names":22,"comments":0,"pivot_tables":0},"unopened":[],"bounds":{"document_bytes":16777216,"sheet_cells":100000,"rows_first":2000,"rows_last":500,"rows_between":2000,"halvings":0,"cell_chars":16384,"cell_head_chars":4096},"cells_cut":0,"cells_raw":0,"read":"whole","date_system":"1900"}

{"sheet":"Autodiagnóstico Ético","index":0,"n_rows":0,"n_cols":0,"rows_kept":0,"cut":false,"hidden":false,"merged":[]}

{"sheet":"Instructivo","index":1,"n_rows":30,"n_cols":3,"rows_kept":30,"cut":false,"hidden":false,"merged":[[26,2,26,11],[2,2,2,11],[11,2,11,11],[12,2,12,11],[14,2,14,11],[18,2,18,11],[3,2,3,11],[7,2,7,11],[4,2,4,11],[5,2,5,11],[6,2,6,11],[25,2,25,11],[16,2,16,11],[24,2,24,11],[8,2,8,11],[9,2,9,11],[23,2,23,11],[17,2,17,11],[10,2,10,11],[13,2,13,11],[21,2,21,11],[20,2,20,11],[19,2,19,11]]}
[]
[]
[null,null,"Instructivo "]
[null,null,"El DANE como mayor productor de estadísticas oficiales del Sistema Estadístico Nacional (SEN) propició la incorporación de la valoración ética en las operaciones estadísticas que produce y difunde, a partir de la implementación de su Sistema de Ética Estadística (SETE), el cual, cuenta con un marco ético conformado por cuatro ejes y 15 principios; e identifica 9 riesgos a los que puede estar expuesta la producción estadística.  El SETE se instauró de forma oficial el 15 de abril de 2021.  Para más información sobre el evento, puede consultar el siguiente enlace: https://www.youtube.com/watch?v=JmjLTGHpJno&t=472s"]
[null,null,"El SETE está conformado por tres instancias: el Comité de Ética Estadística, la Sala de Apelaciones y un Grupo Base. El Comité de Ética Estadística es la primera instancia de deliberación y evaluación ética. Está conformado por 12 miembros: cinco miembros internos con voz y voto; dos miembros externos con voz y voto; dos miembros rotativos con voz y voto (en representación de la sociedad civil para la temática de la operación estadística (O.E) que se somete a evaluación); y tres delegados del DANE (uno de la Oficina Jurídica, uno del área de Gestión Humana y uno de la Dirección de Comunicaciones) con voz y sin voto. "]
[null,null,"La Sala de Apelaciones es la segunda instancia de evaluación para aquellos casos en los que se pide una segunda evaluación, por parte de los responsables de las operaciones estadísticas (OO.EE), quienes manifiestan desacuerdos  frente a las decisiones tomadas por el Comité.  La Sala está conformada por 6 miembros: dos miembros internos con voz y voto, un miembro externo con voz y voto; y, los tres delegados del DANE con voz y sin voto que también participan en el Comité. "]
[null,null,"El grupo base  funge como Secretaría Técnica y se encarga además, de realizar acciones de promoción y apropiación del marco ético estadístico (incluida la asesoría en la realización del autodiagnóstico ético, a través de la presente herramienta); así como también, analizar situaciones con implicaciones éticas en la entidad, que se relacionan con el quehacer misional del DANE.  El grupo base está conformado por cinco miembros: dos expertos externos en ética aplicada y tres miembros internos expertos en estadística.  Para más información sobre el marco ético y la conformación del SETE puede consultar el siguiente enlace:"]
[null,null,"https://www.sen.gov.co/conozca-el-sen/instancias/sete."]
[null,null,"Las operaciones estadísticas (OO.EE) brindan información estadística para la toma de decisión en las políticas pública y privada; y para el conocimiento de la sociedad en general. Más allá de valorar la información estadística que se provee, es importante considerar además, lo que debe hacerse, esto es, en los fines y valores sociales que se deben promover y en los límites éticos a los que deben amoldarse las fases relacionadas con la producción estadística."]
[null,null,"Para tal efecto, esta herramienta permite autoevaluar en el ámbito de la ética aplicada a la estadística, las OO.EE en relación con los principios y riesgos éticos del SETE. Si bien, esta herramienta permite un proceso general de autoevaluación, es importante resaltar que los responsables de las OO.EE podrán contar siempre con la asesoría del grupo base SETE sete@dane.gov.co y que la realización de esta evaluación no excluye ningún otro procedimiento o evaluación a las que normalmente se someten las OO.EE."]
[null,null,"Además de esta  herramienta, el grupo base SETE pone a disposición capacitaciones, talleres, cursos y seminarios WEB para que los investigadores o responsables de las OO.EE  conozcan y apropien el marco ético establecido; y los invita a reflexionar sobre la ética a lo largo de toda la cadena de valor de la producción estadística. Cabe resaltar que, si bien, se establecen planes de mejoramiento para subsanar la falta de adhesión total o parcial al marco ético; el plan propuesto no resuelve de forma automática, las situaciones éticas y conflictos éticos inmersos en las OO.EE."]
[null,null,"Esta herramienta está conformada por cinco paneles, más el presente instructivo que le permitirá navegar de forma adecuada y tranquila."]
[null,null,"El segundo panel de la herramienta de autodiagnóstico pone a disposición de la comunidad estadística, un glosario de términos que le permitirá una mejor comprensión del lenguaje empleado, propio de la ética aplicada a la estadística.  Este glosario fue revisado y validado en cuatro mesas de trabajo con el grupo de Regulación de la Dirección de Regulación, Planeación, Estandarización y Normalización (DIRPEN), equipo encargado de la estandarización de conceptos."]
[null,null,"El tercer panel presenta la información básica de la operación estadística y resume las fases de su proceso estadístico."]
[null,null,"El cuarto panel está conformado por dos bloques.  El primero presenta las rúbricas o criterios a tener en cuenta para evaluar el cumplimiento de cada uno de los principios del marco ético estadístico, agrupados en cuatro ejes. La valoración del cumplimiento se realiza en una escala de Likert con seis categorías: una categoría de \"NA en color gris\" que indica que el principio no  aplica para la operación estadística; \"1 en color rojo\" que indica que el principio no se está cumpliendo; \"2 en color naranja\" indica que el cumplimiento del principio es bajo; \"3 en color amarillo\" indica un cumplimiento parcial del principio\"; \"4 verde claro\" indica un cumplimiento alto del principio; y, \"5 en color verde oscuro\" indica pleno cumplimiento o adhesión al principio."]
[]
[null,null,"En el segundo bloque de este panel se realiza la valoración de cada principio. Esta valoración además de identificar el grado de cumplimiento o adhesión del marco ético, debe estar acompañada de una justificación técnica, incluyendo la justificación para la opción de \"No aplica NA\"."]
[null,null,"En los espacios dispuestos para la valoración de cada pirncipio, puede colocar su evaluación y justificación, respectivamente."]
[null,null,"El quinto panel está conformado por los 9 riesgos éticos identificados en el proceso estadístico. Para la valoración de cada riesgo, existe un conjunto de rúbricas que determina en qué grado hay una exposición al riesgo. Esta sección considera además, el modelo de apreciación de riesgos de Hermansson y Hansson (2007), según el cual, además de considerar la magnitud y la posibilidad de ocurrencia de los riesgos éticos, es relevante considerar la distribución del riesgo y la participación de los involucrados, clasificando estos últimos en tres categorías: quiénes toman la decisión sobre el riesgo, quiénes se benefician del riesgo y quiénes corren el riesgo. "]
[null,null,"A partir de unas preguntas orientadoras el responsable de la O.E. puede identificar el grado de exposición a los riesgos éticos. También se presentan preguntas orientadoras inherentes a cada riesgo y se sugiere una serie de evidencias documentales, dependiendo si aplican o no a la O.E."]
[null,null," Al igual que los principios, se trabaja bajo una escala de Likert, pero con una interpretación inversa y una escala de cuatro categorías. \"NA\" en color gris indica que el riesgo no aplica para la operación estadística; \"5 en color rojo\" indica que hay un riesgo ético alto en la operación estadística; \"3 en color amarillo\" indica un riesgo ético de nivel medio para la operación estadística; y, \"1\" en color verde\" indica un riesgo ético bajo para la operación estadística."]
[null,null,"Así, mientras la categoría \"1 color rojo\" para los principios, indica el no cumplimiento de un principio, \"1 color verde\" para los riesgos, indica un riesgo ético bajo. Esta valoración además de identificar el nivel de riesgo ético en una O.E, debe estar acompañada de una justificación técnica, incluyendo la justificación para la opción de \"No aplica NA\"."]
[]
[null,null,"En el espacio en blanco de la columna \"Calificación\" puede consignar la valoración del riesgo que está evaluando.  En la parte final de cada riesgo, se encuentra el espacio para consignar la justificación que respalda la calificación otorgada."]
[null,null,"El último panel presenta la ficha de autoevaluación ética, la cual, contiene los resultados éticos de una O.E. para su proceso estadístico.  La información contenida en este espacio es de solo lectura y no se hace ningún diligenciamiento. Las OO.EE a evaluarse éticamente en una vigencia son el resultado de un ejercicio de priorización que el grupo base del SETE realiza de forma conjunta con el Comité Directivo del DANE. "]
[null,null,"No existe un orden predeterminado para realizar el autodiagnóstico, lo importante del ejercicio, es realizarlo de forma completa. "]
[null,null,"Navegar por la herramienta es muy fácil, oprima el botón de la sección a la que desea ingresar. Para volver al tablero principal, oprima el botón que se encuentra dispuesto en la parte superior derecha."]
[]
[]
[null,null,"!Bienvenidos!"]

{"sheet":"Glosario de Términos","index":2,"n_rows":41,"n_cols":4,"rows_kept":41,"cut":false,"hidden":false,"merged":[[3,3,3,4],[2,1,2,4]]}
[]
[]
[null,"Glosario de Términos"]
[null,"Término",null,"Concepto"]
[null,"Accesibilidad",null,"Facilidad con que la información estadística puede ser ubicada y obtenida por los usuarios; contempla la forma en que esta se provee, los medios de difusión, así como la disponibilidad de los metadatos y los servicios de apoyo para su consulta."]
[null,"Actos de discriminación",null,"Impedir, obstruir o restringir arbitrariamente el pleno ejercicio de los derechos de las personas por razón de su raza, nacionalidad, sexo u orientación sexual."]
[null,"Autonomía",null,"Capacidad y derecho de los ciudadanos para establecer reglas de conducta y tomar decisiones por sí mismos en cuanto a sus relaciones con otros y con el Estado."]
[null,"Conflicto de intereses",null,"Situación en la que se puede encontrar un servidor y en la que el interés público que debe atender se opone a su interés particular y que podría influenciar indebidamente en el ejercicio de sus funciones y responsabilidades oficiales."]
[null,"Conflicto ético",null,"Situación en que hay al menos dos alternativas para decidir y donde cada una tiene argumentos de peso moral o ético para optar por ellas y no se pueden realizar juntas. "]
[null,"Consentimiento Informado dentro de la investigación estadística",null,"Adhesión libre y racional de las personas naturales y jurídicas para brindar información que el equipo de trabajo de la investigación estadística solicite y que luego será anonimizada."]
[null,"Cultura estadística",null,"Interpretación y uso de la información estadística que hacen los ciudadanos y las instituciones para formar sus opiniones y participar en el debate público y en la toma de decisiones en torno a asuntos que conciernen a la comunidad en general."]
[null,"Datos colaborativos",null,"Datos obtenidos a partir de relaciones estratégicas con distintas entidades y organizaciones para la generación, la gestión y el uso de datos con fines estadísticos."]
[null,"Discriminación",null,"Distinción, exclusión, restricción, tratamiento ilegal o preferencia que basada en la raza, el color, la edad, el sexo, la orientación sexual, el idioma, la religión, la opinión o por su origen nacional o étnico, desalienta o impide la igualdad de reconocimiento, el goce y el ejercicio de los derechos humanos y las libertades fundamentales en las esferas política, económica, social y cultural o en cualquier otro ámbito de la vida pública. "]
[null,"Enfoque diferencial",null,"Perspectiva de análisis que permite obtener y difundir información sobre grupos poblacionales con características particulares (edad o etapa del ciclo vital, género, pertenencia étnica, campesina o discapacidad, entre otras) para promover la visibilización de situaciones de vida particulares o brechas existentes en la toma de decisiones públicas y privadas. "]
[null,"Estigmatización estadística",null,"Representación o descripción desfavorable que se puede presentar en el proceso estadístico y que puede afectar negativamente la dignidad y la integridad de un individuo, un grupo, un colectivo, una comunidad o un sector social."]
[null,"Ética",null,"Rama de la filosofía que se encarga del análisis, la reflexión y la justificación sobre los principios y los valores que distinguen lo bueno de lo malo y lo justo de lo injusto."]
[null,"Ética aplicada",null,"Parte de la ética que se ocupa del examen de cuestiones éticas que se presentan en los distintos ámbitos de la vida de los individuos y de la sociedad."]
[null,"Ética estadística",null,"Comprende el cumplimiento de los principios éticos que orientan las fases del proceso estadístico."]
[null,"Ética normativa",null,"Rama de la ética que se centra en reflexionar sobre las reglas y los estándares para la regulación y el enjuiciamiento de las acciones. "]
[null,"Exactitud",null,"Proximidad de los cálculos o las estimaciones a los valores exactos o verdaderos que las estadísticas busca medir."]
[null,"Gobierno de datos",null,"Autoridad sobre los datos a lo largo de todo su ciclo de generación de valor del proceso estadístico."]
[null,"Grupos étnicos",null,"Grupos de personas que se reconocen y son reconocidos por los demás en función de ciertos elementos comunes (cosmovisión, organización social, valores, hábitos) además de usos y costumbres que caracterizan la interacción entre sus miembros y otros grupos. Los grupos étnicos de Colombia son: los indígenas; el pueblo Rrom o gitano; los raizales de San Andrés, Providencia y Santa Catalina, y la población negra, mulata, afrocolombiana o afrodescendiente, junto con los palenqueros de San Basilio."]
[null,"Identidad negativa",null,"Valoración negativa que se hace sobre los individuos o los grupos con roles y valores opuestos a las expectativas sociales."]
[null,"Invisibilización estadística",null,"Comprende la exclusión de un grupo social vulnerable o no y la acción de ignorar situaciones demográficas, políticas o culturales que afectan sus derechos fundamentales y los siguientes atributos de calidad estadística: credibilidad, exactitud y precisión de la información."]
[null,"Juicio moral",null,"Tipo de juicio que se hace sobre lo bueno y lo justo de una acción o respecto a una persona."]
[null,"Manipulación estadística",null,"Acción intencional de alterar la información estadística para favorecer ciertos intereses."]
[null,"Metaética",null,"Se ocupa de reflexionar sobre el significado y el origen de los conceptos éticos."]
[null,"Moral",null,"Principios y normas que deben guiar el comportamiento de los individuos y que se justifican en el marco de una deliberación razonable basada en el carácter y las costumbres de los miembros de una comunidad."]
[null,"Opacidad",null,"Falta de claridad en la información estadística que se produce, la metodología y el proceso de las operaciones estadísticas que afecta la transparencia."]
[null,"Operación estadística",null,"Conjunto de procesos y actividades que comprenden la identificación de necesidades, el diseño, la construcción, la recolección o acopio, el procesamiento, el análisis, la difusión y la evaluación, que conducen a la producción de información estadística sobre un tema de interés nacional o territorial."]
[null,"Precisión",null,"Proximidad entre los valores de dos o más medidas obtenidas de la misma manera y para la misma muestra; se puede expresar en términos de la desviación estándar."]
[null,"Principios éticos",null,"Pautas generales que guían el actuar y están directamente conectados con los valores."]
[null,"Proceso estadístico",null,"Conjunto sistemático de actividades encaminadas a la producción de estadísticas; entre ellas están: la detección de necesidades de información, el diseño, la construcción, la recolección, el procesamiento, el análisis, la difusión y la evaluación."]
[null,"Razón moral",null,"Criterio base para evaluar una acción o tomar una decisión, así mismo establece cuando una acción es moralmente buena o justa."]
[null,"Reserva Estadística",null,"Principio que establece que los datos suministrados en el desarrollo de la producción estadística no podrán darse a conocer al público ni a las entidades u organismos oficiales, ni a las autoridades públicas, sino únicamente en resúmenes numéricos en los que sea imposible deducir: información de carácter individual que pudiera utilizarse para fines comerciales; información de tributación fiscal; información de investigación judicial, o cualquier otra información diferente de la estadística."]
[null,"Riesgo",null,"Situación en la que es posible que ocurra algún evento indeseable."]
[null,"Riesgo ético (ámbito estadístico)",null,"Situación dentro del proceso estadístico en la que es posible que ocurra algún evento que puede generar la violación a un principio o norma ética (daño moral)."]
[null,"Sesgo",null,"Corresponde a la alteración de una explicación, un juicio, una justificación o una decisión en la producción estadística al usar variables que no son relevantes para el proceso estadístico o a factores no controlados en la recolección, el procesamiento, el análisis y la interpretación de los datos."]
[null,"Sistema Estadístico Nacional",null,"Conjunto articulado de componentes que garantizan la producción y difusión de las estadísticas oficiales a nivel nacional y territorial que requiere el país, de manera organizada y sistemática. Sus componentes son las entidades y organizaciones productoras de información estadística y responsables de registros administrativos, los usuarios, los procesos e instrumentos técnicos para la coordinación, así como las políticas, principios, fuentes de información, infraestructura tecnológica y talento humano necesarios para su funcionamiento."]
[null,"Sujeto de Derechos Colectivos (SDC)",null,"Grupo social o colectivo al que se le garantiza sus derechos colectivos fundamentales (identidad étnica y cultural, territorio, autonomía, participación y desarrollo propio) en razón de que son grupos minoritarios y para asegurar su supervivencia. "]
[null,"Valores",null,"Principios y virtudes que se consideran importantes y preocupan a la sociedad, son ideales a los que se aspira y que sirven como guía para juzgar las acciones y el comportamiento de las personas."]

{"sheet":"Información básica OO.EE","index":3,"n_rows":66,"n_cols":7,"rows_kept":66,"cut":false,"hidden":false,"merged":[[2,2,2,11],[4,3,4,6],[64,6,64,8],[9,3,9,11],[13,3,13,11],[15,3,15,11],[20,3,20,11],[11,3,11,11],[65,6,65,8],[26,2,28,11],[35,2,37,11],[49,2,51,11],[53,2,55,11],[57,2,59,11],[30,2,33,11],[39,2,42,11],[44,2,47,11]]}
[]
[]
[null,null,"Información básica OO.EE"]
[]
[null,null,"Código SETE"]
[]
[null,null,"Operación Estadística (OO.EE)"]
[]
[]
[null,null,"Nombre OO.EE"]
[]
[null,null,"Sigla OO.EE"]
[]
[null,null,"Responsable de la OO.EE"]
[]
[null,null,"Objetivos de la OO.EE"]
[]
[]
[null,null,"Resumen de la OO.EE"]
[]
[null,null,"Fuentes de datos de la OO.EE."]
[]
[null,null,"Fases de la OO.EE."]
[null,null,"Describa de forma breve cada una de las fases del proceso estadístico"]
[]
[null,null,"1. Detección y Análisis de Necesidades"]
[]
[]
[]
[null,null,"2. Diseño"]
[]
[]
[]
[]
[null,null,"3. Construcción"]
[]
[]
[]
[null,null,"4. Recopilación / Acopio"]
[]
[]
[]
[]
[null,null,"5. Procesamiento"]
[]
[]
[]
[]
[null,null,"6. Análisis"]
[]
[]
[]
[null,null,"7. Difusión"]
[]
[]
[]
[null,null,"8. Evaluación"]
[]
[]
[]
[]
[]
[]
[]
[]
[null,null,"Firma Responsable OO.EE.",null,null,null,"Fecha de recepción"]

{"sheet":"Ficha de Autoevaluación","index":4,"n_rows":70,"n_cols":9,"rows_kept":70,"cut":false,"hidden":false,"merged":[[2,1,2,11],[21,5,21,11],[22,5,22,11],[20,5,20,11],[3,2,3,5],[5,2,5,11],[15,5,15,11],[16,5,16,11],[17,5,17,11],[19,5,19,11],[9,1,10,1],[12,5,12,11],[13,5,13,11],[14,5,14,11],[9,8,10,8],[23,5,23,11],[24,5,24,11],[25,5,25,11],[62,2,62,9],[64,2,64,9],[35,5,35,11],[36,5,36,11],[28,5,28,11],[29,5,29,11],[30,5,30,11],[31,5,31,11],[33,5,33,11],[34,5,34,11],[27,5,27,11],[69,2,69,9],[43,1,44,1],[47,5,47,11],[54,5,54,11],[55,5,55,11],[56,5,56,11],[43,8,44,8],[48,5,48,11],[49,5,49,11],[50,5,50,11],[51,5,51,11],[52,5,52,11],[53,5,53,11]]}
[]
[]
[null,"Ficha de Autoevaluación"]
[null,"Código SETE",{"$f":"IFERROR(VLOOKUP($B4,'Información básica OO.EE'!C5:G5,2,0),\" \")","v":0}]
[]
[null,"Nombre OO.EE",{"$f":"IFERROR(VLOOKUP(B6,'Información básica OO.EE'!C10:L10,2,0),\"\")","v":0}]
[]
[null,"Apropiación de los Principios Éticos en la operación estadística"]
[]
[null,"Escala de valoración","NA",1,2,3,4,5,{"$f":"IFERROR(AVERAGE(D14:D18,D22:D26,D30:D32,D36:D37),\"\")","v":0}]
[]
[]
[null,"Eje 1: Dignidad, confidencialidad y enfoque diferencial ",null,"Valoración",null,"Justificación de la calificación elegida"]
[null,"1.       Respeto a la dignidad humana  ",null,{"$f":"IFERROR(VLOOKUP($B14,'Autoevaluación principios '!$B$14:$D$18,3,0),\"\")","v":0},null,{"$f":"IFERROR(VLOOKUP($B14,'Autoevaluación principios '!$B$14:$L$18,5,0),\"\")","v":0}]
[null,"2.       Control de los individuos sobre sus datos personales  ",null,{"$f":"IFERROR(VLOOKUP($B15,'Autoevaluación principios '!$B$14:$D$18,3,0),\"\")","v":0},null,{"$f":"IFERROR(VLOOKUP($B15,'Autoevaluación principios '!$B$14:$L$18,5,0),\"\")","v":0}]
[null,"3.       Respeto del derecho a la intimidad personal y familiar  ",null,{"$f":"IFERROR(VLOOKUP($B16,'Autoevaluación principios '!$B$14:$D$18,3,0),\"\")","v":0},null,{"$f":"IFERROR(VLOOKUP($B16,'Autoevaluación principios '!$B$14:$L$18,5,0),\"\")","v":0}]
[null,"4.       Protección de los derechos fundamentales de todas las personas naturales y jurídicas ",null,{"$f":"IFERROR(VLOOKUP($B17,'Autoevaluación principios '!$B$14:$D$18,3,0),\"\")","v":0},null,{"$f":"IFERROR(VLOOKUP($B17,'Autoevaluación principios '!$B$14:$L$18,5,0),\"\")","v":0}]
[null,"5.       Garantía de un enfoque diferencial en las estadísticas ",null,{"$f":"IFERROR(VLOOKUP($B18,'Autoevaluación principios '!$B$14:$D$18,3,0),\"\")","v":0},null,{"$f":"IFERROR(VLOOKUP($B18,'Autoevaluación principios '!$B$14:$L$18,5,0),\"\")","v":0}]
[]
[]
[null,"Eje 2: Imparcialidad, transparencia y publicidad ",null,"Valoración",null,"Justificación de la calificación elegida"]
[null,"1.       Garantía de integridad en el tratamiento de los datos y publicación de resultados ",null,{"$f":"IFERROR('Autoevaluación principios '!D22,\" \")","v":0},null,{"$f":"IFERROR(VLOOKUP($B22,'Autoevaluación principios '!$B$22:$L$26,5,0),\"\")","v":0}]
[null,"2.       Transparencia y rendición de cuentas como elementos garantes del acceso a la información pública y el control social  ",null,{"$f":"IFERROR('Autoevaluación principios '!D23,\" \")","v":0},null,{"$f":"IFERROR(VLOOKUP($B23,'Autoevaluación principios '!$B$22:$L$26,5,0),\"\")","v":0}]
[null,"3.       Participación de los actores involucrados  ",null,{"$f":"IFERROR('Autoevaluación principios '!D24,\" \")","v":0},null,{"$f":"IFERROR(VLOOKUP($B24,'Autoevaluación principios '!$B$22:$L$26,5,0),\"\")","v":0}]
[null,"4.       Imparcialidad en la producción estadística  ",null,{"$f":"IFERROR('Autoevaluación principios '!D25,\" \")","v":0},null,{"$f":"IFERROR(VLOOKUP($B25,'Autoevaluación principios '!$B$22:$L$26,5,0),\"\")","v":0}]
[null,"5.       Oportunidad y acceso equitativo a la información  ",null,{"$f":"IFERROR('Autoevaluación principios '!D26,\" \")","v":0},null,{"$f":"IFERROR(VLOOKUP($B26,'Autoevaluación principios '!$B$22:$L$26,5,0),\"\")","v":0}]
[]
[]
[null,"Eje 3: Legitimidad y generación de valor público ",null,"Valoración",null,"Justificación de la calificación elegida"]
[null,"1.       Generación y promoción de la confianza en las estadísticas  ",null,{"$f":"IFERROR('Autoevaluación principios '!D30,\" \")","v":0},null,{"$f":"IFERROR(VLOOKUP($B30,'Autoevaluación principios '!$B$30:$L$32,5,0),\"\")","v":0}]
[null,"2.       Contribución de los datos al bien público ",null,{"$f":"IFERROR('Autoevaluación principios '!D31,\" \")","v":0},null,{"$f":"IFERROR(VLOOKUP($B31,'Autoevaluación principios '!$B$30:$L$32,5,0),\"\")","v":0}]
[null,"3.       Ajuste de la producción estadística a los marcos legales  ",null,{"$f":"IFERROR('Autoevaluación principios '!D32,\" \")","v":0},null,{"$f":"IFERROR(VLOOKUP($B32,'Autoevaluación principios '!$B$30:$L$32,5,0),\"\")","v":0}]
[]
[]
[null,"Eje 4: Uso seguro de las tecnologías actuales y futuras ",null,"Valoración",null,"Justificación de la calificación elegida"]
[null,"1.       Promoción de la supervisión humana, considerando los límites y riesgos del uso de nuevas tecnologías de información ",null,{"$f":"IFERROR('Autoevaluación principios '!D36,\" \")","v":0},null,{"$f":"IFERROR(VLOOKUP($B36,'Autoevaluación principios '!$B$36:$L$37,5,0),\"\")","v":0}]
[null,"2.       Ponderación de las implicaciones y riesgos de los datos colaborativos (SEN) ",null,{"$f":"IFERROR('Autoevaluación principios '!D37,\" \")","v":0},null,{"$f":"IFERROR(VLOOKUP($B37,'Autoevaluación principios '!$B$36:$L$37,5,0),\"\")","v":0}]
[]
[]
[]
[null,"Exposición a Riesgos éticos "]
[]
[]
[null,"Escala de valoración",null,null,"NA",1,3,5,{"$f":"IFERROR(AVERAGE(D49:D57),\"\")","v":0.55555555555555558}]
[]
[]
[]
[null,null,null,"Valoración",null,"Justificación de la calificación elegida"]
[null,"1.       Irrespeto de la autonomía y privacidad de los individuos  ",null,{"$f":"IFERROR(VLOOKUP($B$49,'Riesgo No 1'!$A$7:$B$10,2,0),\"\")","v":5},null,{"$f":"IFERROR(VLOOKUP(B49,'Riesgo No 1'!A30:F30,2,0),\"\")","v":0}]
[null,"2.       Invisibilización o exclusión estadística ",null,{"$f":"IFERROR(VLOOKUP(B50,'Riesgo No 2'!A8:B11,2,0),\"\")","v":0},null,{"$f":"IFERROR(VLOOKUP(B50,'Riesgo No 2'!A18:F18,2,0),\"\")","v":0}]
[null,"3.       Estigmatización y etiquetado  ",null,{"$f":"IFERROR(VLOOKUP(B51,'Riesgo No 3'!A9:B11,2,0),0)","v":0},null,{"$f":"IFERROR(VLOOKUP(B51,'Riesgo No 3'!A19:F20,2,0),\"\")","v":0}]
[null,"4.       No pertinencia de la información estadística ",null,{"$f":"IFERROR(VLOOKUP(B52,'Riesgo No 4'!A8:B13,2,0),0)","v":0},null,{"$f":"IFERROR(VLOOKUP(B52,'Riesgo No 4'!A23:F24,2,0),\"\")","v":0}]
[null,"5.       Mala comunicación ",null,{"$f":"IFERROR(VLOOKUP(B53,'Riesgo No 5'!A8:B11,2,0),0)","v":0},null,{"$f":"IFERROR(VLOOKUP(B53,'Riesgo No 5'!A22:F23,2,0),\"\")","v":0}]
[null,"6.       Sesgo y manipulación ",null,{"$f":"IFERROR(VLOOKUP(B54,'Riesgo No 6'!A8:B13,2,0),0)","v":0},null,{"$f":"IFERROR(VLOOKUP(B54,'Riesgo No 6'!A22:F23,2,0),\"\")","v":0}]
[null,"7.       Falta de veracidad y opacidad  ",null,{"$f":"IFERROR(VLOOKUP(B55,'Riesgo No 7'!A8:B14,2,),0)","v":0},null,{"$f":"IFERROR(VLOOKUP(B55,'Riesgo No 7'!A25:F28,2,0),\"\")","v":0}]
[null,"8.       Uso inseguro de las tecnologías actuales y futuras ",null,{"$f":"IFERROR(VLOOKUP(B56,'Riesgo No 8'!A8:B10,2,0),\"\")","v":0},null,{"$f":"IFERROR(VLOOKUP(B56,'Riesgo No 8'!A22:F24,2,0),\"\")","v":0}]
[null,"9.       Abusos y perjuicios de los datos colaborativos",null,{"$f":"IFERROR(VLOOKUP(B57,'Riesgo No 9'!A8:B10,2,0),\"\")","v":0},null,{"$f":"IFERROR(VLOOKUP(B57,'Riesgo No 9'!A17:F18,2,0),\"\")","v":0}]
[]
[]
[null,"Concepto SETE "]
[]
[]
[null,"Concepto grupo de trabajo SETE"]
[]
[null,"Concepto Comité de Ética"]
[]
[null,"Se eleva a Sala de Apelaciones",null,"SI",null,"NO"]
[]
[]
[null,"Concepto Sala de Apelaciones"]

{"sheet":"Rúbrica Principios","index":5,"n_rows":46,"n_cols":8,"rows_kept":46,"cut":false,"hidden":false,"merged":[[25,7,25,8],[26,7,26,8],[2,1,2,11],[7,5,7,11],[8,5,8,11],[9,5,9,11],[10,5,10,11],[11,5,11,11],[20,2,20,5],[22,7,22,11],[23,7,23,11],[12,5,12,11],[24,2,24,5],[20,7,20,11],[24,7,24,11],[21,7,21,11],[44,7,44,11],[45,7,45,11],[40,2,40,5],[44,2,44,5],[28,7,28,8],[37,7,37,8],[41,7,41,8],[42,7,42,8],[40,7,40,11],[32,7,32,11],[34,7,34,8],[35,7,35,8],[30,7,30,11],[31,7,31,11],[33,7,33,11],[15,2,15,11],[21,2,21,5],[23,2,23,5],[22,2,22,5],[45,2,45,5],[29,7,29,11],[38,7,38,11],[39,7,39,11],[43,7,43,8],[29,2,29,5],[30,2,30,5],[38,2,38,5],[39,2,39,5],[31,2,31,5],[32,2,32,5],[33,2,33,5]]}
[]
[]
[null,"Rúbricas Principios"]
[null,null,"Principios. Criterios de autoevaluación "]
[]
[null,null,"Escala de valoración ética del proceso estadístico de la OO.EE"]
[]
[null,null,"NA",null,null,"No aplica para el principio"]
[null,null,1,null,null,"No cumplimiento del principio"]
[null,null,2,null,null,"Cumplimiento bajo del principio "]
[null,null,3,null,null,"Cumplimiento parcial del principio"]
[null,null,4,null,null,"Cumplimiento alto del principio"]
[null,null,5,null,null,"Cumplimiento del principio"]
[]
[null,null,"Justificación de la valoración ética asignada"]
[null,null,"Todos los riesgos y principios deben  tener una justificación de la calificación propuesta e indicar aquellas fases del proceso estadístico que se ven involucradas."]
[]
[null,null,"Apropiación de Principios"]
[null,null,"Eje 1: Dignidad, confidencialidad y enfoque diferencial "]
[]
[null,null,"1. Respeto a la dignidad humana  ",null,null,null,null,"Para la consideración de la dignidad humana, que puede ser un término amplio, considere la adhesión de la operación a los principios generales de los Derechos Humanos y de la consideración de las personas como agentes con propósitos y vidas propias y no sólo como medios para la operación propuesta. Indique la fase o fases del proceso estadístico  que se ve o se ven afectadas."]
[null,null,"2.  Control de los individuos sobre sus datos personales  ",null,null,null,null,"Para la consideración de este principio, tenga en cuenta que aun cuando la Ley 79 de 1993 establece la obligación de aportar los datos requeridos por el DANE en sus censos y encuestas, es necesario buscar el consentimiento de las personas y cumplir con los requisitos dispuestos en la Ley 1266 de 2008 (Ley de Habeas Data), lo que implica velar por el derecho de los ciudadanos a “conocer, actualizar, rectificar y eliminar la información que (…) [han] suministrado a terceros y se ha incorporado a bases de datos y archivos públicos y privados”  Indique la fase o fases del proceso estadístico  que se ve o se ven afectadas."]
[null,null,"3. Respeto del derecho a la intimidad personal y familiar  ",null,null,null,null,"Para la justificación del cumplimiento de este principio debe tenerse en cuenta si la operación estadística planteada puede generar la posibilidad de vigilancia, por parte de entidades públicas o privadas, sobre las preferencia e intereses particulares de las personas o familias encuestadas. Indique la fase o fases del proceso estadístico  que se ve o se ven afectadas."]
[null,null,"4. Protección de los derechos fundamentales de todas las personas naturales y jurídicas ",null,null,null,null,"En adición al derecho a la intimidad personal y familiar, para la consideración de este principio tome en cuenta el primer capítulo de la Constitución política colombiana . Indique la fase o fases del proceso estadístico  que se ve o se ven afectadas."]
[null,null,"5. Garantía de un enfoque diferencial en las estadísticas ",null,null,null,null,"Respecto de la consideración del enfoque diferencial es relevante preguntarse, en concordancia con la Ley 1448 de 2011, si la operación estadística planteada propende por la recolección de información con los mayores niveles de desagregación posibles para la toma de decisiones públicas y privadas. Indique la fase o fases del proceso estadístico  que se ve o se ven afectadas."]
[]
[]
[null,null,"Eje 2: Imparcialidad, transparencia y publicidad "]
[]
[null,null,"6.  Garantía de integridad en el tratamiento de los datos y publicación de resultados ",null,null,null,null,"Respecto de este principio hay que considerar si la manera en que se produce y presenta la información utiliza formas de recolección/acopio, análisis y procesamiento que sean aceptables para la comunidad científica, en la medida en que se usan protocolos que son claros, coherentes, oportunos y fiables. Indique la fase o fases del proceso estadístico  que se ve o se ven afectadas."]
[null,null,"7.  Transparencia y rendición de cuentas como elementos garantes del acceso a la información pública y el control social  ",null,null,null,null,"Para la justificación respecto de este principio debe considerarse si los distintos actores que intervienen en el proceso de producción estadística asumen la responsabilidad de dar cuenta de los procedimientos utilizados durante el proceso ante los ciudadanos en general y, en especial, ante los principales usuarios de la información estadística, como pueden ser las organizaciones de la sociedad civil, los gremios y sindicatos, la comunidad de investigadores y los organismos estatales. Indique la fase o fases del proceso estadístico  que se ve o se ven afectadas."]
[null,null,"8. Participación de los actores involucrados  ",null,null,null,null,"En la consideración de este principio debe considerarse si se abre la posibilidad de las personas para tomar parte en la decisión en torno a la pertinencia de la información y a la manera en que se produce y difunde. Indique la fase o fases del proceso estadístico  que se ve o se ven afectadas."]
[null,null,"9. Imparcialidad en la producción estadística  ",null,null,null,null,"En la consideración de este principio hay que preguntarse si los fines de la operación son independientes de intereses de personas o entidades particulares. Indique la fase o fases del proceso estadístico  que se ve o se ven afectadas."]
[null,null,"10. Oportunidad y acceso equitativo a la información  ",null,null,null,null,"Recuerde que, para que la imparcialidad no sea una declaración formal sin efectos prácticos, es menester que todos ciudadanos tengan la misma oportunidad de acceder a la misma información. Indique la fase o fases del proceso estadístico  que se ve o se ven afectadas."]
[]
[]
[null,null,"Eje 3: Legitimidad y generación de valor público "]
[]
[null,null,"11. Generación y promoción de la confianza en las estadísticas  ",null,null,null,null,"Teniendo en cuenta que , la confianza constituye uno de los valores fundamentales inherente a las estadísticas oficiales, pues refleja el grado en el que las personas reconocen la validez, credibilidad y el respaldo de la información social, económica, cultural y ambiental que se genera en el país, y que de la confianza de los involucrados depende, en gran medida la fiabilidad y disponibilidad de datos para las operaciones estadísticas, hay que considerar en qué medida la operación en cuestión genera y promueve la confianza en las estadísticas producidas por el DANE.  Indique la fase o fases del proceso estadístico  que se ve o se ven afectadas."]
[null,null,"12. Contribución de los datos al bien público ",null,null,null,null,"En la consideración del bien público, debe considerarse si la operación en cuestión genera beneficios para la sociedad en su conjunto y si dicha operación es necesaria para la producción de dichos beneficios. Indique la fase o fases del proceso estadístico  que se ve o se ven afectadas."]
[null,null,"13. Ajuste de la producción estadística a los marcos legales  ",null,null,null,null,"En la consideración de este principio debe tenerse en cuenta el marco legal vigente. Indique la fase o fases del proceso estadístico  que se ve o se ven afectadas."]
[]
[null,null,"Eje 4: Uso seguro de las tecnologías actuales y futuras "]
[]
[null,null,"14. Promoción de la supervisión humana, considerando los límites y riesgos del uso de nuevas tecnologías de información ",null,null,null,null,"En caso de que la operación involucre el uso de nuevas tecnologías o inteligencia artificial, para la justificación de la respuesta a este punto debe considerarse si la operación cuenta con la supervisión humana de la operación de los instrumentos tecnológicos y si existen mecanismos de rendición de cuenta apropiados. Indique la fase o fases del proceso estadístico  que se ve o se ven afectadas."]
[null,null,"15.  Ponderación de las implicaciones y riesgos de los datos colaborativos (SEN) ",null,null,null,null,"En la justificación de este principio hay que cuestionar si en la operación en cuestión se adoptan medidas necesarias, ya sea a nivel normativo, administrativo, técnico u organizativo, para proteger la seguridad y la integridad de los datos estadísticos y su transmisión, de conformidad con las mejores prácticas disponibles. Indique la fase o fases del proceso estadístico  que se ve o se ven afectadas."]

{"sheet":"Autoevaluación principios ","index":6,"n_rows":37,"n_cols":8,"rows_kept":37,"cut":false,"hidden":false,"merged":[[2,1,2,11],[9,1,10,1],[31,5,31,11],[34,5,34,11],[3,2,3,5],[5,2,5,11],[24,5,24,11],[25,5,25,11],[28,5,28,11],[29,5,29,11],[30,5,30,11],[35,5,35,11],[36,5,36,11],[11,5,11,11],[19,5,19,11],[27,5,27,11],[33,5,33,11],[12,5,12,11],[13,5,13,11],[14,5,14,11],[15,5,15,11],[16,5,16,11],[17,5,17,11],[20,5,20,11],[21,5,21,11],[22,5,22,11],[23,5,23,11]]}
[]
[]
[null,"Autoevaluación Principios"]
[null,"Código SETE",{"$f":"IFERROR(VLOOKUP(B4,'Información básica OO.EE'!C5:G5,2,0),\"\")","v":0}]
[]
[null,"Nombre OO.EE",{"$f":"IFERROR(VLOOKUP(B6,'Información básica OO.EE'!C10:L10,2,0),\"\")","v":0}]
[]
[null,"Apropiación de los Principios Éticos en la operación estadística"]
[]
[null,"Escala de valoración ética del proceso estadístico de la OO.EE","NA",1,2,3,4,5]
[]
[]
[null,"Eje 1: Dignidad, confidencialidad y enfoque diferencial ",null,"Valoración",null,"Justificación de la calificación elegida"]
[null,"1.       Respeto a la dignidad humana  "]
[null,"2.       Control de los individuos sobre sus datos personales  "]
[null,"3.       Respeto del derecho a la intimidad personal y familiar  "]
[null,"4.       Protección de los derechos fundamentales de todas las personas naturales y jurídicas "]
[null,"5.       Garantía de un enfoque diferencial en las estadísticas "]
[]
[]
[null,"Eje 2: Imparcialidad, transparencia y publicidad ",null,"Valoración",null,"Justificación de la calificación elegida"]
[null,"1.       Garantía de integridad en el tratamiento de los datos y publicación de resultados "]
[null,"2.       Transparencia y rendición de cuentas como elementos garantes del acceso a la información pública y el control social  "]
[null,"3.       Participación de los actores involucrados  "]
[null,"4.       Imparcialidad en la producción estadística  "]
[null,"5.       Oportunidad y acceso equitativo a la información  "]
[]
[]
[null,"Eje 3: Legitimidad y generación de valor público ",null,"Valoración",null,"Justificación de la calificación elegida"]
[null,"1.       Generación y promoción de la confianza en las estadísticas  "]
[null,"2.       Contribución de los datos al bien público "]
[null,"3.       Ajuste de la producción estadística a los marcos legales  "]
[]
[]
[null,"Eje 4: Uso seguro de las tecnologías actuales y futuras ",null,"Valoración",null,"Justificación de la calificación elegida"]
[null,"1.       Promoción de la supervisión humana, considerando los límites y riesgos del uso de nuevas tecnologías de información "]
[null,"2.       Ponderación de las implicaciones y riesgos de los datos colaborativos (SEN) "]

{"sheet":"Riesgo No 1","index":7,"n_rows":30,"n_cols":6,"rows_kept":30,"cut":false,"hidden":false,"merged":[[4,2,5,2],[4,1,5,1],[22,2,22,5],[23,2,23,5],[24,2,24,5],[11,1,12,5],[13,1,13,5],[10,1,10,5],[25,2,25,5],[29,1,29,5],[6,1,9,1],[6,2,9,2],[15,1,27,1],[15,2,15,3],[16,2,16,5],[17,2,17,5],[19,2,19,5],[26,2,26,5],[27,2,27,5],[20,2,20,5],[21,2,21,5],[28,1,28,5],[18,2,18,5]]}
[]
[]
[null,"Riesgo No. 1","Irrespeto de la autonomía y privacidad de los individuos"]
[]
[null,"Calificación","NA","Riesgo alto","Riesgo medio","Riesgo bajo"]
[null,null,null,1,3,5]
["1.       Irrespeto de la autonomía y privacidad de los individuos  ",5,null,"Estará en riesgo alto si se cumple  alguna de las siguientes situaciones:","Estará en riesgo medio si se cumple con las siguientes condiciones:","Estará en riesgo bajo o si se cumple con las siguientes condiciones:"]
[null,null,null,"1. Los datos o resultados de la operación estadística son susceptibles de permitir la identificación directa o indirecta de individuos (personas o empresas) o grupos poblacionales específicos.","1. Existen protocolos de anonimización de la información producida por la operación estadística que impiden la identificación directa o indirecta de la información individual (de personas o empresas) o de grupos poblacionales específicos.","1. Existen protocolos de anonimización estandarizados de la información producida por la operación estadística los cuales se encuentran documentados, e impiden la identificación directa o indirecta de la información individual (de personas o empresas) o de poblaciones específicas."]
[null,null,null,"2. No existen, o no están documentados, mecanismos o instrumentos que permitan salvaguardar la confidencialidad, custodia y reserva de la información capturada y producida por la operación  durante todas las fases del proceso de producción estadística.","2. Existen mecanismos o instrumentos que permiten salvaguardar la confidencialidad, custodia y reserva de la información capturada y producida por la operación estadística durante todas las fases del proceso de producción estadística.","2. Existen procedimientos, mecanismos e instrumentos  que orientan la  salvaguarda de  la confidencialidad, custodia y reserva de la información capturada y producida por la operación estadística durante todas las fases del proceso de producción estadística."]
[null,null,null,"3. Para aquellas operaciones que  lo ameritan no existen consentimientos informados  (personas naturales) y/o acuerdos de confidencialidad (personas jurídicas)  que informan  y soportan la autorización por parte de las personas implicadas en la operación  estadística sobre el propósito del procesamiento  de los datos personales o individuales capturados. O bien el uso de los datos va más allá del propósito inicial para el cual se otorgó inicialmente la autorización.","3. Existen instrumentos de consentimiento o acuerdo de confidencialidad que informan de forma completa y autorizan el procesamiento y uso de los datos personales o individuales capturados.","3. Existen instrumentos de consentimiento o acuerdo de confidencialidad que informan de forma completa y soportan suficientemente la autorización por parte de las personas implicadas en la operación estadística sobre el propósito y uso del procesamiento de los datos personales o individuales capturados."]
[null,"Exposición a los Riesgos"]
[null,"Para la justificación de las respuestas provistas en cada uno de los riesgos éticos, considere el modelo de apreciación de riesgos de Hermansson y Hansson (2007), según el cual, además de la consideración de la magnitud y la posibilidad de ocurrencia de los riesgos éticos, es relevante considerar la distribución del riesgo y la participación de los involucrados, clasificando estos últimos en tres categorías: quiénes toman la decisión sobre el riesgo, quiénes se benefician del riesgo y quienes corren el riesgo. Para la elaboración de la justificación, de respuesta a  las siguientes preguntas. "]
[]
[null,"1. ¿En qué medida los expuestos al riesgo se benefician de la exposición al riesgo?\n2. ¿Es justa la distribución de riesgos y beneficios?\n3. ¿Se puede hacer menos injusta la distribución de riesgos y beneficios mediante la redistribución? ¿o por compensación?\n4. ¿En qué medida la exposición al riesgo es decidida por quienes corren el riesgo?\n5. ¿Las personas expuestas al riesgo tienen acceso a toda la información relevante sobre el riesgo?\n6. ¿Hay personas expuestas al riesgo que no puedan ser informadas o incluidas en la proceso de decisión?\n7. ¿El tomador de decisiones se beneficia de la exposición al riesgo de otras personas?"]
[]
[null,"Preguntas orientadoras y evidencias","Preguntas orientadoras:"]
[null,null,"¿La operación estadística sigue los lineamientos institucionales en materia de protección de datos personales y seguridad de la información?\nLa operación estadística "]
[null,null,"¿La operación estadística cuenta con criterios de anonimización para la publicación de sus resultados?"]
[null,null,"¿La operación estadística realiza consultas previas al operativo de recolección o acopio, con expertos y/o representantes de organizaciones civiles que procuren la garantía del derecho a la autonomía y privacidad de los individuos que se ven involucrados o impactados por los resultados de esta operación?"]
[null,null,"Evidencias que pueden ser aportadas"]
[null,null,"Formato de solicitud de acceso a servidores. Cod: ARI-040-PD-001-r-002. (Para definir roles y asignar los permisos de acceso a la información acorde con las actividades desarrolladas en los subprocesos que aplique)"]
[null,null,"Formato de compromiso de confidencialidad, no divulgación de la información y declaración de conflicto de intereses. Cod: CID-020-PD-001-r003."]
[null,null,"Acta de compromiso de confidencialidad para usuarios y acceso a través de SPPE y por VPN. Cod: DIE-020-GU-004-r-001"]
[null,null,"Cláusulas de confidencialidad dentro de los contratos"]
[null,null,"Actas de Comités Externos realizados en una fecha posterior a la entrega de resultados de la operación estadística. Esto de acuerdo con el Art.11 de la Resolución DANE No.3121 de 2018"]
[null,null,"Formatos de Consentimiento Informado"]
[null,null,"Formatos de Acuerdos de Confidencialidad de intercambio de información"]
[]
[null,"Justificación de la evaluación"]
["1.       Irrespeto de la autonomía y privacidad de los individuos  "]

{"sheet":"Riesgo No 2","index":8,"n_rows":18,"n_cols":6,"rows_kept":18,"cut":false,"hidden":false,"merged":[[5,1,6,1],[5,2,6,2],[16,1,16,5],[17,1,17,5],[7,1,10,1],[7,2,10,2],[9,5,10,5],[11,1,15,1],[11,2,11,5],[12,2,12,5],[13,2,13,5],[14,2,14,5],[15,2,15,5]]}
[]
[]
[]
[null,"Riesgo No. 2 ","Invisibilización y exclusión estadística"]
[]
[null,"Calificación","NA","Riesgo alto","Riesgo medio","Riesgo bajo"]
[null,null,null,1,3,5]
["2.       Invisibilización o exclusión estadística ",null,"Aplica a aquellas operaciones estadísticas donde los sujetos de investigación sean grupos que históricamente han sufrido discriminación o vulneración de sus derechos, o son sujetos de especial protección","Estará en riesgo alto si se cumple  alguna de las siguientes situaciones:","Estará en riesgo medio si se cumple con las siguientes condiciones:","Estará en riesgo bajo o si se cumple con las siguientes condiciones:"]
[null,null,null,"1. La operación estadística  tiene limitaciones para la caracterización de la población objetivo.","1.La operación estadística tiene limitaciones para la caracterización de la población, pero tiene en cuenta los enfoques diferencial e interseccional. ","1. La operación estadística caracteriza de forma adecuada la población objetivo, dando cuenta de la heterogeneidad de esta, teniendo en cuenta los enfoques diferencial e interseccional."]
[null,null,null,"2. La operación estadística no  contempla medidas compensatorias o correctivas para subsanar sus limitaciones en la caracterización de la población objetivo.","2.  La operación estadística contempla medidas compensatorias o correctivas para subsanar las limitaciones en la caracterización de la población objetivo.","2. La operación estadística cuenta con protocolos o mecanismos para la discusión y la socialización con representantes de las comunidades o grupos directamente afectados por la información, ya sea como usuarios de la información o como sujetos de la investigación."]
[null,null,null,"3. No se cuenta con protocolos o mecanismos para la discusión y la socialización con representantes de las comunidades o grupos poblacionales involucrados por la operación estadística.","3. La operación estadística  cuenta con protocolos o mecanismos para la discusión y la socialización con representantes de las comunidades o grupos que sean sujetos de la investigación."]
[null,"Preguntas orientadoras y evidencias","Preguntas orientadoras: "]
[null,null,"¿Existe algún riesgo de no incluir  o no tener en cuenta las necesidades de información de un grupo poblacional históricamente discriminado o especialmente vulnerable en la operación estadística?"]
[null,null,"Evidencias que pueden ser aportadas:"]
[null,null,"Implementación  de la guía para la inclusión del enfoque diferencial e interseccional en la producción estadística del sistema estadístico nacional  "]
[null,null,"Consulta de comunidades durante fases previas al operativo de campo o levantamiento de la información  de la operación estadística."]
[null,"Justificación de la evaluación"]
["2.       Invisibilización o exclusión estadística "]

{"sheet":"Riesgo No 3","index":9,"n_rows":19,"n_cols":6,"rows_kept":19,"cut":false,"hidden":false,"merged":[[6,1,7,1],[6,2,7,2],[17,1,17,5],[18,1,18,5],[8,1,10,1],[8,2,10,2],[11,1,16,1],[11,2,11,5],[12,2,12,5],[13,2,13,5],[14,2,14,5],[15,2,15,5],[16,2,16,5]]}
[]
[]
[]
[]
[null,"Riesgo No 3  ","Estigmatización y etiquetado"]
[]
[null,"Calificación","NA","Riesgo alto","Riesgo medio","Riesgo bajo"]
[null,null,null,1,3,5]
["3.       Estigmatización y etiquetado  ",null,"Aplica a todas","Estará en riesgo alto si se cumple  alguna de las siguientes situaciones:","Estará en riesgo medio si se cumple con las siguientes condiciones:","Estará en riesgo bajo o si se cumple con las siguientes condiciones:"]
[null,null,null,"1. La operación estadística no contempla ninguna medida para evitar caer en la estigmatización  ni en el uso de un lenguaje discriminatorio que acentúe o genere estereotipos negativos de algún o algunos grupos poblacionales involucrados en la investigación.","1. La operación estadística  tiene limitaciones en su capacidad para evitar estereotipos y uso de un lenguaje discriminatorio, que acentúe o genere estereotipos negativos de  grupos poblacionales particulares.  Sin embargo, implementa estándares conocidos para evitar un lenguaje o  tratamiento discriminatorio durante la captura de información.","1. La operación estadística permite una caracterización adecuada de los diferentes grupos poblacionales de forma tal que no hay cabida a distorsiones de la caracterización de estos grupos ni por ellos mismos ni por la población en general."]
[null,null,null,"2. La operación  tiene limitaciones para la implementación de medidas compensatorias o correctivas para subsanar sus limitaciones en la caracterización  de diferentes grupos poblacionales","2. La operación contempla medidas compensatorias o correctivas para subsanar sus limitaciones en la caracterización así como el  involucramiento de  grupos poblacionales particulares durante el proceso de producción estadística. ","2. La operación estadística  permite una buena caracterización de los diferentes grupos poblacionales, empleando estándares y las mejores prácticas para evitar estereotipos, representaciones desfavorables o tratos discriminatorios durante todo proceso de producción estadística."]
[null,"Preguntas Orientadoras y evidencias","Preguntas orientadoras"]
[null,null,"Teniendo como referencia tanto la caracterización de las poblaciones a estudiar, como el lenguaje empleado en las preguntas de los cuestionarios y en la presentación de los resultados de la  operación, ¿Existe el riesgo de generar o acentuar estereotipos negativos con respecto a algún grupo poblacional?"]
[null,null,"Evidencias que pueden ser aportadas:"]
[null,null,"Implementación  de la guía para la inclusión del enfoque diferencial e interseccional en la producción estadística del sistema estadístico nacional  "]
[null,null,"Se realizan pruebas piloto (de escritorio) al instrumento de captura para verificar la comprensión de las preguntas y si en ellas se emplean términos o expresiones que pueden generar o acentuar estereotipos negativos de algún grupo poblacional. "]
[null,null,"Se involucra o consulta a grupos poblaciones particulares durante el diseño de la operación estadística"]
[null,"Justificación de la evaluación"]
["3.       Estigmatización y etiquetado  "]

{"sheet":"Riesgo No 4","index":10,"n_rows":23,"n_cols":6,"rows_kept":23,"cut":false,"hidden":false,"merged":[[5,1,6,1],[5,2,6,2],[21,1,21,5],[22,1,22,5],[20,2,20,5],[7,1,12,1],[7,2,12,2],[13,1,20,1],[13,2,13,5],[14,2,14,5],[15,2,15,5],[16,2,16,5],[17,2,17,5],[18,2,18,5],[19,2,19,5]]}
[]
[]
[]
[null,"Riesgo No 4","No pertinencia de la información estadística"]
[]
[null,"Calificación","NA","Riesgo alto","Riesgo medio","Riesgo bajo"]
[null,null,null,1,3,5]
["4.       No pertinencia de la información estadística ",null,"Siempre aplica","Estará en riesgo alto si se cumple  alguna de las siguientes situaciones:","Estará en riesgo medio si se cumple con las siguientes condiciones:","Estará en riesgo bajo o si se cumple con las siguientes condiciones:"]
[null,null,null,"1. El objetivo de la operación estadística no obedece a necesidades de información concreta de acuerdo con sus grupos considerados de interés.","1. El objetivo de la operación estadística se alinea y se actualiza de acuerdo con las necesidades de información de sus grupos de interés. ","1. El objetivo de la operación estadística obedece a las necesidades conocidas de información de sus grupos de interés."]
[null,null,null,"2. La operación estadística no conoce cuales son sus grupos de interés.","2. La operación estadística posee métodos o instrumentos que le permiten conocer, caracterizar y actualizar sus grupos de interés, así como sus necesidades de información.","2. La operación estadística posee métodos o instrumentos que le permiten conocer, caracterizar y actualizar sus grupos de interés, así como sus necesidades de información incorporando en estos un enfoque diferencial e interseccional."]
[null,null,null,"3. La operación estadística no se actualiza de acuerdo con las necesidades de información de sus grupos de interés. ","3. La operación cuenta con un diseño metodológico que cumple con los estándares mínimos nacionales e internacionales para la producción estadística","3. La operación estadística cuenta con un diseño y una metodología que cumple con los estándares nacionales e internacionales de calidad para la producción estadística."]
[null,null,null,"4.La operación estadística no ha establecido claramente su diseño, metodología o procedimientos de acuerdo con los estándares vigentes nacionales e internacionales.","4. La información producida por la operación procura la no exclusión de las necesidades de ciertos grupos poblacionales."]
[null,null,null,"5. La información producida omite necesidades de ciertos grupos poblacionales que la operación debería tener en cuenta."]
[null,"Preguntas orientadoras y evidencias","Preguntas orientadoras"]
[null,null,"¿La operación estadística dispone de medios para consultar las necesidades de  información de sus grupos de interés?"]
[null,null,"¿La operación estadística cuenta con mecanismos para consultar la satisfacción con respecto a la información que produce?"]
[null,null,"Evidencias que pueden ser aportadas:"]
[null,null,"Matriz para la identificación de necesidades de información estadística para la caracterización de grupos de interés del DANE. Cod: DAR-020-PD-003-r-003"]
[null,null,"Herramientas y estrategias de difusión aplicadas de acuerdo con la segmentación de grupos de interés"]
[null,null,"Plan de sensibilización de la operación estadística"]
[null,null,"Reporte de avance en la implementación de las estrategias y ajustes pertinentes del plan de sensibilización"]
[null,"Justificación de la evaluación"]
["4.       No pertinencia de la información estadística "]

{"sheet":"Riesgo No 5","index":11,"n_rows":22,"n_cols":6,"rows_kept":22,"cut":false,"hidden":false,"merged":[[5,1,6,1],[5,2,6,2],[21,1,21,5],[7,1,10,1],[7,2,10,2],[11,1,19,1],[11,2,11,5],[12,2,12,5],[13,2,13,5],[14,2,14,5],[17,2,17,5],[18,2,18,5],[19,2,19,5],[20,1,20,5],[15,2,15,5],[16,2,16,5]]}
[]
[]
[]
[null,"Riesgo No 5: Mala comunicación"]
[]
[null,"Calificación","NA","Riesgo alto","Riesgo medio","Riesgo bajo"]
[null,null,null,1,3,5]
["5.       Mala comunicación ",null,"Siempre aplica","Estará en riesgo alto si se cumple  alguna de las siguientes situaciones:","Estará en riesgo medio si se cumple con las siguientes condiciones:","Estará en riesgo bajo o si se cumple con las siguientes condiciones:"]
[null,null,null,"1.La información producida es poco clara para el público general."," 1.La información producida por la operación es clara para el público en general.","1.La información producida por la operación es clara y de fácil acceso para el público en general."]
[null,null,null,"2.La información producida por la operación, los resultados y los documentos metodológicos o de soporte no están disponibles.","2.Los resultados, documentos metodológicos y de soporte son comprensibles y están disponibles al público.","2. Los resultados, documentos metodológicos y de soporte son comprensibles y están disponibles de forma amplia al público.  Las políticas de acceso a la información estadística son claras y facilitan el acceso y uso de esta."]
[null,null,null,"3.Los resultados, microdatos y series históricas que no están sujetos a la reserva estadística de la operación estadística no están disponibles para el público.","3.Los resultados, microdatos y series históricas que no están sujetos a la reserva estadística de la operación estadística están disponibles al público, pero no hay claridad acerca de las políticas para su uso.","3.Los resultados, microdatos y series históricas que no están sujetos a la reserva estadística de la operación estadística son públicos y se conservan con base en políticas claras de uso de la información que también se encuentran disponibles al público."]
[null,"Preguntas orientadoras y evidencias","Preguntas orientadoras"]
[null,null,"¿Se presentan muchas consultas o requerimientos para ampliar o explicar la información producida por la operación estadística?"]
[null,null,"¿Qué indicadores de uso de la información que produce tiene la operación estadística?  ¿Cuenta con indicadores para establecer si la presentación de los resultados son claros, fácilmente accesibles para los  accesibilidad (que sea directo el acceso). En la presentación de los resultados ¿se cuenta con interfaz gráfica (disposición de contenidos y colores) e información para personas con discapacidad?"]
[null,null,"Evidencias que pueden ser aportadas:"]
[null,null,"Indicadores sobre accesibilidad de los usuarios a la información (que sea directo el acceso)"]
[null,null,"Evidencias sobra la periodicidad con que se publican las estadísticas (calendario web)"]
[null,null,"Pruebas de escritorio de los instrumentos de captura "]
[null,null,"Encuesta de percepción de satisfacción"]
[null,null,"Indicadores de mediciones de usabilidad (preguntar por claridad de la información)"]
[null,"Justificación de la evaluación"]
["5.       Mala comunicación "]

{"sheet":"Riesgo No 6","index":12,"n_rows":23,"n_cols":6,"rows_kept":23,"cut":false,"hidden":false,"merged":[[5,1,6,1],[5,2,6,2],[21,1,21,5],[22,1,22,5],[7,1,12,1],[7,2,12,2],[13,1,20,1],[13,2,13,5],[14,2,14,5],[15,2,15,5],[16,2,16,5],[18,2,18,5],[19,2,19,5],[20,2,20,5],[17,2,17,5]]}
[]
[]
[]
[null,"Riesgo No 6 ","Sesgo y manipulación"]
[]
[null,"Calificación","NA","Riesgo alto","Riesgo medio","Riesgo bajo"]
[null,null,null,1,3,5]
["6.       Sesgo y manipulación ",null,"Aplica a todas","Estará en riesgo alto si se cumple  alguna de las siguientes situaciones:","Estará en riesgo medio si se cumple con las siguientes condiciones:","Estará en riesgo bajo o si se cumple con las siguientes condiciones:"]
[null,null,null,"1. La información sí tiene efectos sobre incentivos o intereses en grupos o comunidades que son fuentes primarias de la información o sobre las comunidades que son usuarias de la información. ","1. La información tiene efectos sobre incentivos o intereses de grupos o comunidades que son fuentes primarias o sobre incentivos o intereses de comunidades que son usuarias de la información, pero la operación los identifica y monitorea.","1. La información que provee la operación estadística  no tiene efectos sobre incentivos o intereses de grupos o comunidades que son fuentes primarias."]
[null,null,null,"2. La metodología no garantiza que no haya manipulación en la información. ","2. La metodología garantiza que no haya manipulación de la información. ","2. La información no tiene efectos sobre incentivos o intereses de comunidades que son usuarios de la información. "]
[null,null,null,"3. La operación estadística no tiene previstos mecanismos para evitar los sesgos. ","3. Se tienen previstos mecanismos efectivos para evitar los sesgos. ","3. La metodología garantiza que no haya manipulación de la información. "]
[null,null,null,"4. La operación estadística no tiene un mecanismo para declarar conflicto de intereses de personas que participan en las distintas fases de la operación estadística.","4. Existe un mecanismo para declarar conflicto de intereses de personas que participan en las fases de la operación estadística.","4. Se tienen previstos mecanismos efectivos para evitar los sesgos en los resultados producidos por la operación estadística."]
[null,null,null,null,null,"5. Existe un mecanismo para declarar conflicto de intereses de personas que participan en las fases de la operación estadística."]
[null,"Preguntas orientadoras y evidencias"," Preguntas orientadoras"]
[null,null,"¿Hay algún tipo de incentivo que pueda motivar al sesgo y la manipulación de la información?"]
[null,null," ¿Se contempla en la metodología la forma de evitar los sesgos en la recolección, análisis y la manera como se presenta la información? "]
[null,null,"¿Cómo se resuelven los conflictos de intereses?"]
[null,null,"¿Qué mecanismos implementa la O.E para garantizar que no se presente manipulación?"]
[null,null,"Evidencias que pueden ser aportadas:"]
[null,null,"Ficha metodológica y documento metodológico de la operación estadística "]
[null,null,"Protocolo sobre conflicto de intereses o algo similar. "]
[null,"Justificación de la evaluación"]
["6.       Sesgo y manipulación "]

{"sheet":"Riesgo No 7","index":13,"n_rows":28,"n_cols":6,"rows_kept":28,"cut":false,"hidden":false,"merged":[[27,1,27,5],[24,2,24,5],[25,2,25,5],[7,1,13,1],[7,2,13,2],[14,1,25,1],[14,2,14,5],[15,2,15,5],[19,2,19,5],[20,2,20,5],[21,2,21,5],[22,2,22,5],[18,2,18,5],[5,1,6,1],[5,2,6,2],[26,1,26,5],[17,2,17,5],[16,2,16,5],[23,2,23,5]]}
[]
[]
[]
[null,"Riesgo No 7 ","Falta de veracidad y opacidad"]
[]
[null,"Calificación","NA","Riesgo alto","Riesgo medio","Riesgo bajo"]
[null,null,null,1,3,5]
["7.       Falta de veracidad y opacidad  ",null,null,"Estará en riesgo alto si se cumple  alguna de las siguientes situaciones:","Estará en riesgo medio si se cumple con las siguientes condiciones:","Estará en riesgo bajo o si se cumple con las siguientes condiciones:"]
[null,null,null,"1. No existe un mecanismo claro que permita convalidar cómo se consultaron las necesidades de información para el diseño y puesta en marcha de la operación estadística.","1. Se han establecido las necesidades de la información a partir de consultas con representantes legítimos de los grupos y comunidades que hacen parte de los grupos de interés identificados por la operación estadística (hay usuarios internos y externos).","1. Se han identificado los grupos de interés de la operación estadística  y se les ha  consultado durante el diseño y la construcción de esta."]
[null,null,null,"2. La operación estadística  no cuenta con comités internos y externos que se consulten durante ninguna fase de la producción estadística. ","2. La operación estadística  cuenta con comités internos y externos consultados previamente  a la publicación de resultados. ","2. El diseño de la operación ha sido puesto en discusión por expertos (internos y externos) en el tema y ha sido razonablemente aceptado por estos. "]
[null,null,null,"3. No se conoce la opinión de los usuarios de información con respecto a la oportunidad de la publicación de resultados de la operación estadística.","3.La divulgación de la información producida por la operación estadística se hace de manera oportuna. ","3. Se consulta la satisfacción de los usuarios de información en lo referente a la oportunidad de la publicación de resultados de la operación estadística. "]
[null,null,null,"4. No se conoce el nivel de satisfacción del público en general con respecto a la información estadística producida por la operación estadística.","4. Se cuenta con algún indicador o herramienta para medir el nivel de satisfacción del público  general con respecto a la información estadística publicada por la operación.","4. Se presentan los resultados al comité interno y se documentan las observaciones y apreciaciones obtenidas."]
[null,null,null,null,null,"5. Se socializa la información estadística producida por la operación  con  actores externos expertos y se documenta su retroalimentación."]
[null,null,null,null,null,"6. La difusión de la información producida por la operación estadística es accesible por el público en general y  este se manifiesta satisfecho con la forma en que la información es publicada."]
[null,"Preguntas orientadoras y evidencias","Preguntas orientadoras"]
[null,null," ¿En la primera fase de la operación estadística se tuvieron en cuenta las necesidades de información de los distintos grupos poblacionales? "]
[null,null,"¿Se verifica que los algoritmos empleados no tengan sesgos y se ejecuten de manera correcta?"]
[null,null,"¿Aplican reglas de validación? ¿Estas reglas son suficientes para garantizar la consistencia de los resultados? "]
[null,null,"¿En la fase de análisis del proceso estadístico cuenta con herramientas que garanticen la consistencia de la información y  de contraste?"]
[null,null," ¿Se puso a discusión de expertos internos y externos la OO.EE?"]
[null,null,"¿Cuándo y cómo se divulgaron los resultados de la OO.EE?"]
[null,null,"Evidencias que pueden ser aportadas:"]
[null,null,"Estudios sobre necesidades de la información"]
[null,null,"Diseño de la fase de procesamiento y análisis"]
[null,null,"Conceptos de los expertos externos e internos"]
[null,null,"Documento que evidencia la presentación de la información a las comunidades y grupos"]
[null,"Justificación de la evaluación"]
["7.       Falta de veracidad y opacidad  "]

{"sheet":"Riesgo No 8","index":14,"n_rows":22,"n_cols":6,"rows_kept":22,"cut":false,"hidden":false,"merged":[[21,1,21,5],[7,1,9,1],[7,2,9,2],[10,1,18,1],[10,2,10,5],[11,2,11,5],[12,2,12,5],[16,2,16,5],[17,2,17,5],[18,2,18,5],[5,1,6,1],[5,2,6,2],[20,1,20,5],[19,2,19,5],[13,2,13,5],[14,2,14,5],[15,2,15,5]]}
[]
[]
[]
[null,"Riesgo No 8 ","Uso inseguro de las tecnologías actuales y futuras"]
[]
[null,"Calificación","NA","Riesgo alto","Riesgo medio","Riesgo bajo"]
[null,null,null,1,3,5]
["8.       Uso inseguro de las tecnologías actuales y futuras ",null,null,"Estará en riesgo alto si se cumple  alguna de las siguientes situaciones:","Estará en riesgo medio si se cumple con las siguientes condiciones:","Estará en riesgo bajo o si se cumple con las siguientes condiciones:"]
[null,null,null,"1. La operación estadística hace uso de tecnologías actuales y futuras sin ningún protocolo y seguimiento de seguridad en las fases del GSBMP que lo ameritan.","1. La operación estadística implementa protocolos de seguridad en el uso de tecnologías actuales y futuras, pero sin un seguimiento sistemático en todas las fases del GSBPM que lo requieren.","1. La operación estadística  implementa y hace seguimiento sistemático a los protocolos de seguridad establecidos para el uso de tecnologías actuales y futuras en todas las fases del GSBPM, incluyendo los lineamientos establecidos para la adecuada ejecución de pruebas."]
[null,null,null,"2. Los algoritmos (tales como los cálculos empleados en las diferentes fases de producción estadística) no son revisados y no se discuten sus implicaciones sobre los resultados.","2. Los algoritmos (tales como los cálculos empleados en las diferentes fases de producción estadística) son revisados, pero no se discuten sus implicaciones sobre los resultados","2. Los algoritmos (tales como los cálculos empleados en las diferentes fases de producción estadística) son revisados y se discuten sus implicaciones sobre los resultados."]
[null,"Preguntas orientadoras y evidencias","Preguntas orientadoras:"]
[null,null,"¿La operación estadística emplea fuentes alternativas de información (Ej. Big data) o métodos alternativos (Ej. machine learning o inteligencia artificial)?"]
[null,null,"¿Los algoritmos empleados en las diferentes fases de la operación estadística son revisados no solo desde una perspectiva técnica sino también desde sus implicaciones sociales?"]
[null,null,"¿Existen mecanismos idóneos para garantizar que no se materialice un riesgo de manipulación con las tecnologías empleadas para la producción estadística? (Cláusulas de confidencialidad, No uso de la información en beneficios de terceros, permisos a los usuarios, seguimiento a la Política General de Seguridad y Privacidad de la Información conforme a la clasificación de la información: confidencial, confidencial restringida, reservada, etc.)"]
[null,null,"¿La producción de estadística se lleva a cabo empleando tecnologías seguras, accesibles, eficientes en beneficio de los usuario y teniendo en cuenta el fomento de la cultura estadística?"]
[null,null,"¿La operación estadística cumple con los lineamientos proporcionados por la Política General de Seguridad y Privacidad de la Información durante todas las fases del GSBMP?"]
[null,null,"Evidencias que pueden ser aportadas:"]
[null,null,"Existe documentación que muestra los análisis sobre los algoritmos empleados en la operación estadística y su seguimiento "]
[null,null,"La OO.EE. emplea alguna fuente alternativa de información con análisis de riesgo / implicación documentación relacionada"]
[null,null,"Análisis de contexto que realizan las operaciones estadísticas, incorporando una nota que identifique los medios tecnológicos empleados en la producción de la información."]
[null,"Justificación de la evaluación"]
["8.       Uso inseguro de las tecnologías actuales y futuras "]

{"sheet":"Riesgo No 9","index":15,"n_rows":17,"n_cols":6,"rows_kept":17,"cut":false,"hidden":false,"merged":[[5,1,6,1],[5,2,6,2],[15,1,15,5],[7,1,9,1],[16,1,16,5],[10,1,14,1],[10,2,10,5],[11,2,11,5],[12,2,12,5],[13,2,13,5],[14,2,14,5],[7,2,9,2]]}
[]
[]
[]
[null,"Riesgo No 9: Abusos y perjuicios de los datos colaborativos"]
[]
[null,"Calificación","NA","Riesgo alto","Riesgo medio","Riesgo bajo"]
[null,null,null,1,3,5]
["9.       Abusos y perjuicios de los datos colaborativos",null,".","Estará en riesgo alto si se cumple  alguna de las siguientes situaciones:","Estará en riesgo medio si se cumple con las siguientes condiciones:","Estará en riesgo bajo o si se cumple con las siguientes condiciones:"]
[null,null,null,"1. La operación estadística  hace uso de los datos suministrados en el marco del SEN para fines adicionales a los de la operación estadística, sin adecuada interpretación.","1. La operación estadística  hace uso de los datos suministrados en el marco del SEN para fines adicionales a los de la operación estadística, sin adecuada interpretación.","1. La operación estadística hace uso exclusivo de los datos suministrados en el marco del SEN para los fines estadísticos de la operación y emplea protocolos que validan su adecuada interpretación y limitan los abusos y perjuicios."]
[null,null,null,"2. No se consideran los riesgos en materia de seguridad de la información de los datos colaborativos.","2. Se consideran los riesgos en materia de seguridad de la información de los datos colaborativos, pero no se cuenta con protocolos de protección implementados o estos presentan deficiencias técnicas identificadas.","2. La operación estadística emplea protocolos que validan su adecuada interpretación, minimizando la probabilidad de que se presenten deficiencias técnicas,  limitando los abusos y perjuicios de los datos colaborativos."]
[null,"Preguntas orientadoras y evidencias","Preguntas orientadoras:"]
[null,null,"¿La operación estadística se basa en datos generados por más de una entidad del Sistema Estadístico Nacional?"]
[null,null,"Evidencias que pueden ser aportadas:"]
[null,null,"Acuerdos de confidencialidad"]
[null,null,"Metodología de la OO.EE\nPolítica General de Seguridad y Privacidad de la Información\nContrato, alianza, convenio, o instrumento jurídico que viabiliza la alianza de datos ( o datos colaborativos)\nAcuerdo a nivel de servicio que involucre aspectos de confidencialidad, uso de datos, responsabilidad de las partes, disponibilidad del servicio, restricciones, soporte, vigencia, etc."]
[null,"Justificación de la evaluación"]
["9.       Abusos y perjuicios de los datos colaborativos"]